[Event "Chinese Team-ch Men 2025"]
[Site "Zhang Jiakou Hebei"]
[Date "2025.04.26"]
[Round "2.1"]
[White "Zhao, Jun"]
[Black "Xu, Yi"]
[Result "1/2-1/2"]
[Annotator "RC"]
[ECO "C42"]
[WhiteElo "2532"]
[BlackElo "2480"]
[PlyCount "60"]
[EventDate "2025.04.26"]
[EventType "team-tourn"]
[EventCountry "CHN"]
[SourceTitle "playchess.com"]
[Source "ChessBase"]
[SourceQuality "1"]
[TimeControl "5400+30"]

1. e4 {[%emt 0:00:05]} e5 {[%emt 0:00:08]} 2. Nf3 {[%emt 0:00:07]} Nf6 {[%emt 0:00:04]} 3. Nxe5 {[%emt 0:00:16]} d6 {[%emt 0:00:04]} 4. Nf3 {[%emt 0:00:10]} Nxe4 {[%emt 0:00:05]} 5. Bd3 {[%emt 0:00:15]} Nf6 {[%emt 0:01:19]} 6. O-O {[%emt 0:00:13]} Be7 {[%emt 0:00:08]} 7. h3 {[%emt 0:00:09]} O-O {[%emt 0:00:07]} 8. c3 {[%emt 0:00:17]} Nbd7 {[%emt 0:07:18]} 9. Re1 {[%emt 0:02:29]} d5 {[%emt 0:00:33]} 10. Bc2 {[%emt 0:00:52]} Re8 {[%emt 0:00:46]} 11. d4 {[%emt 0:00:21]} Bd6 {[%emt 0:00:39]} 12. Bg5 {[%emt 0:06:39]} h6 {[%emt 0:02:31]} 13. Bh4 {[%emt 0:01:20]} Rxe1+ {[%emt 0:10:54]} 14. Qxe1 {[%emt 0:00:10]} Nf8 {[%emt 0:03:15]} 15. Nbd2 {[%emt 0:10:13]} Ng6 {[%emt 0:06:22]} 16. Bg3 {[%emt 0:00:19]} Bxg3 {[%emt 0:04:41]} 17. fxg3 {[%emt 0:00:07]} Nf8 {[%emt 0:04:19]} 18. g4 {[%emt 0:05:05]} N6h7 {[%emt 0:01:44]} 19. Qg3 {[%emt 0:13:21]} Be6 {[%emt 0:00:30]} 20. Nb3 {[%emt 0:03:28]} b6 {[%emt 0:02:56]} 21. Re1 {[%emt 0:02:37]} Qd7 {[%emt 0:04:25]} 22. g5 {[%emt 0:10:50]} Nxg5 {[%emt 0:00:36]} 23. Nxg5 {[%emt 0:00:05]} hxg5 {[%emt 0:00:03]} 24. Qxg5 {[%emt 0:00:05]} Re8 {[%emt 0:04:04]} 25. Re3 {[%emt 0:00:11]} f6 {[%emt 0:01:49]} 26. Qf4 {[%emt 0:00:16]} Bf7 {[%emt 0:01:34]} 27. Rg3 {[%emt 0:11:59]} Re1+ {[%emt 0:03:24]} 28. Kh2 {[%emt 0:09:51]} Qd6 {[%emt 0:07:10]} 29. Qxd6 {[%emt 0:05:18]} cxd6 {[%emt 0:00:05]} 30. Rd3 {[%emt 0:00:39]} Bh5 {[%emt 0:00:26]} 1/2-1/2

[Event "Chinese Team-ch Men 2025"]
[Site "Zhang Jiakou Hebei"]
[Date "2025.04.26"]
[Round "2.2"]
[White "Lou, Yiping"]
[Black "Xiao, Tong"]
[Result "1/2-1/2"]
[Annotator "RC"]
[ECO "E20"]
[WhiteElo "2464"]
[BlackElo "2496"]
[PlyCount "60"]
[EventDate "2025.04.26"]
[EventType "team-tourn"]
[EventCountry "CHN"]
[SourceTitle "playchess.com"]
[Source "ChessBase"]
[SourceQuality "1"]
[TimeControl "5400+30"]

1. d4 {[%emt 0:00:05]} Nf6 {[%emt 0:00:13]} 2. c4 {[%emt 0:00:10]} e6 {[%emt 0:00:08]} 3. Nc3 {[%emt 0:00:04]} Bb4 {[%emt 0:00:10]} 4. e3 {[%emt 0:00:06]} O-O {[%emt 0:00:11]} 5. Bd2 {[%emt 0:00:05]} b6 {[%emt 0:00:41]} 6. a3 {[%emt 0:00:17]} Bxc3 {[%emt 0:01:33]} 7. Bxc3 {[%emt 0:00:07]} Ne4 {[%emt 0:00:25]} 8. Qc2 {[%emt 0:00:17]} Bb7 {[%emt 0:03:17]} 9. Nf3 {[%emt 0:00:07]} d6 {[%emt 0:02:55]} 10. Be2 {[%emt 0:00:17]} a5 {[%emt 0:01:55]} 11. b3 {[%emt 0:04:35]} Nxc3 {[%emt 0:00:10]} 12. Qxc3 {[%emt 0:00:04]} Nd7 {[%emt 0:00:31]} 13. O-O {[%emt 0:00:51]} Qe7 {[%emt 0:02:22]} 14. b4 {[%emt 0:07:00]} axb4 {[%emt 0:02:50]} 15. axb4 {[%emt 0:00:04]} Rfb8 {[%emt 0:06:13]} 16. Rxa8 {[%emt 0:08:44]} Rxa8 {[%emt 0:00:11]} 17. Ra1 {[%emt 0:00:00]} Qd8 {[%emt 0:05:25]} 18. Nd2 {[%emt 0:03:04]} Rxa1+ {[%emt 0:01:49]} 19. Qxa1 {[%emt 0:00:04]} Qa8 {[%emt 0:00:07]} 20. Qxa8+ {[%emt 0:03:00]} Bxa8 {[%emt 0:00:05]} 21. f3 {[%emt 0:00:04]} c5 {[%emt 0:00:55]} 22. dxc5 {[%emt 0:05:36]} dxc5 {[%emt 0:16:34]} 23. b5 {[%emt 0:00:35]} f5 {[%emt 0:00:18]} 24. f4 {[%emt 0:01:59]} Kf7 {[%emt 0:03:18]} 25. Kf2 {[%emt 0:00:53]} Nf6 {[%emt 0:02:04]} 26. h3 {[%emt 0:00:22]} Ne4+ {[%emt 0:00:25]} 27. Nxe4 {[%emt 0:00:06]} Bxe4 {[%emt 0:00:04]} 28. h4 {[%emt 0:00:17]} g6 {[%emt 0:00:29]} 29. g3 {[%emt 0:00:04]} h5 {[%emt 0:00:05]} 30. Ke1 {[%emt 0:00:08]} Ke8 {[%emt 0:00:57]} 1/2-1/2

[Event "Chinese Team-ch Men 2025"]
[Site "Zhang Jiakou Hebei"]
[Date "2025.04.26"]
[Round "2.3"]
[White "Huang, Renjie"]
[Black "Meng, Yihan"]
[Result "1/2-1/2"]
[Annotator "RC"]
[ECO "D27"]
[WhiteElo "2491"]
[BlackElo "2433"]
[PlyCount "64"]
[EventDate "2025.04.26"]
[EventType "team-tourn"]
[EventCountry "CHN"]
[SourceTitle "playchess.com"]
[Source "ChessBase"]
[SourceQuality "1"]
[TimeControl "5400+30"]

1. d4 {[%emt 0:00:08]} d5 {[%emt 0:00:08]} 2. c4 {[%emt 0:00:08]} dxc4 {[%emt 0:00:05]} 3. Nf3 {[%emt 0:00:28]} Nf6 {[%emt 0:00:06]} 4. e3 {[%emt 0:00:08]} e6 {[%emt 0:00:03]} 5. Bxc4 {[%emt 0:00:10]} c5 {[%emt 0:00:04]} 6. O-O {[%emt 0:00:10]} a6 {[%emt 0:00:03]} 7. e4 {[%emt 0:00:05]} b5 {[%emt 0:01:28]} 8. Be2 {[%emt 0:00:37]} Nxe4 {[%emt 0:00:06]} 9. a4 {[%emt 0:00:39]} b4 {[%emt 0:00:06]} 10. Nbd2 {[%emt 0:00:34]} Bb7 {[%emt 0:00:14]} 11. Nxe4 {[%emt 0:01:19]} Bxe4 {[%emt 0:00:05]} 12. Be3 {[%emt 0:00:15]} cxd4 {[%emt 0:00:11]} 13. Nxd4 {[%emt 0:00:34]} Nc6 {[%emt 0:00:09]} 14. Bf3 {[%emt 0:06:15]} Bxf3 {[%emt 0:00:06]} 15. Qxf3 {[%emt 0:00:07]} Nxd4 {[%emt 0:00:03]} 16. Bxd4 {[%emt 0:00:05]} Qd5 {[%emt 0:00:06]} 17. Qe3 {[%emt 0:01:51]} Be7 {[%emt 0:00:08]} 18. Rfd1 {[%emt 0:01:26]} Qg5 {[%emt 0:01:08]} 19. Qxg5 {[%emt 0:00:49]} Bxg5 {[%emt 0:00:04]} 20. Bxg7 {[%emt 0:00:04]} Rg8 {[%emt 0:00:04]} 21. Be5 {[%emt 0:00:03]} Rc8 {[%emt 0:24:03]} 22. f4 {[%emt 0:02:53]} Be7 {[%emt 0:03:13]} 23. Rac1 {[%emt 0:01:02]} Rxc1 {[%emt 0:01:18]} 24. Rxc1 {[%emt 0:00:02]} f6 {[%emt 0:11:19]} 25. Rc8+ {[%emt 0:10:59]} Kf7 {[%emt 0:00:00]} 26. Rxg8 {[%emt 0:00:05]} Kxg8 {[%emt 0:00:00]} 27. Bd4 {[%emt 0:00:13]} f5 {[%emt 0:00:00]} 28. Kf2 {[%emt 0:01:55]} Kf7 {[%emt 0:00:00]} 29. Ke3 {[%emt 0:00:13]} Ke8 {[%emt 0:00:00]} 30. Kd3 {[%emt 0:04:48]} Kd7 {[%emt 0:00:00]} 31. Kc4 {[%emt 0:00:45]} Kc6 {[%emt 0:00:00]} 32. a5 {[%emt 0:02:04]} b3 {[%emt 0:00:00]} 1/2-1/2

[Event "Chinese Team-ch Men 2025"]
[Site "Zhang Jiakou Hebei"]
[Date "2025.04.26"]
[Round "2.4"]
[White "Gong, Sunle"]
[Black "Wang, Yanbin"]
[Result "1/2-1/2"]
[Annotator "ChessBase"]
[ECO "D38"]
[WhiteElo "2410"]
[BlackElo "2454"]
[PlyCount "126"]
[EventDate "2025.04.26"]
[EventType "team-tourn"]
[EventCountry "CHN"]
[SourceTitle "playchess.com"]
[Source "ChessBase"]
[SourceQuality "1"]
[TimeControl "5400+30"]

1. d4 {[%emt 0:00:09]} d5 {[%emt 0:00:03]} 2. c4 {[%emt 0:00:06]} e6 {[%emt 0:00:03]} 3. Nc3 {[%emt 0:00:04]} Nf6 {[%emt 0:00:03]} 4. Nf3 {[%emt 0:01:07]} Bb4 {[%emt 0:01:11]} 5. Qa4+ {[%emt 0:03:06]} Nc6 {[%emt 0:01:49]} 6. Bd2 {[%emt 0:00:18]} O-O {[%emt 0:07:35]} 7. a3 {[%emt 0:00:09]} Bxc3 {[%emt 0:03:02]} 8. Bxc3 {[%emt 0:00:04]} Ne4 {[%emt 0:06:33]} 9. e3 {[%emt 0:00:53]} Nxc3 {[%emt 0:10:30]} 10. bxc3 {[%emt 0:00:06]} Qd6 {[%emt 0:00:05]} 11. c5 {[%emt 0:14:11]} Qd8 {[%emt 0:02:02]} 12. c4 {[%emt 0:04:06]} e5 {[%emt 0:02:51]} 13. cxd5 {[%emt 0:09:35]} Qxd5 {[%emt 0:00:06]} 14. Bc4 {[%emt 0:00:15]} Qe4 {[%emt 0:04:49]} 15. dxe5 {[%emt 0:02:48]} Qf5 {[%emt 0:03:33]} 16. O-O {[%emt 0:06:07]} Nxe5 {[%emt 0:01:54]} 17. Nxe5 {[%emt 0:00:05]} Qxe5 {[%emt 0:00:04]} 18. Rac1 {[%emt 0:00:38]} Be6 {[%emt 0:03:11]} 19. Rfd1 {[%emt 0:05:15]} Bxc4 {[%emt 0:06:55]} 20. Qxc4 {[%emt 0:00:16]} Rfd8 {[%emt 0:00:56]} 21. Rd4 {[%emt 0:04:02]} Rxd4 {[%emt 0:03:12]} 22. exd4 {[%emt 0:13:49]} Qe4 {[%emt 0:01:34]} 23. Kf1 {[%emt 0:01:36]} Re8 {[%emt 0:02:00]} 24. d5 {[%emt 0:00:29]} Qe5 {[%emt 0:00:39]} 25. g3 {[%emt 0:00:31]} g6 {[%emt 0:00:23]} 26. Kg2 {[%emt 0:00:58]} Rd8 {[%emt 0:08:06]} 27. Rd1 {[%emt 0:01:28]} Kg7 {[%emt 0:02:20]} 28. a4 {[%emt 0:03:36]} b6 {[%emt 0:01:11]} 29. c6 {[%emt 0:00:59]} a5 {[%emt 0:00:05]} 30. Rd2 {[%emt 0:00:37]} h5 {[%emt 0:00:23]} 31. f4 {[%emt 0:02:06]} Qe3 {[%emt 0:02:09]} 32. Qc2 {[%emt 0:14:06]} h4 {[%emt 0:04:27]} 33. Qd3 {[%emt 0:03:27]} Qxd3 {[%emt 0:04:59]} 34. Rxd3 {[%emt 0:00:03]} hxg3 {[%emt 0:00:10]} 35. Kxg3 {[%emt 0:00:50]} Kf6 {[%emt 0:02:37]} 36. d6 {[%emt 0:01:32]} cxd6 {[%emt 0:00:10]} 37. c7 {[%emt 0:00:19]} Rc8 {[%emt 0:00:04]} 38. Rxd6+ {[%emt 0:00:03]} Ke7 {[%emt 0:00:42]} 39. Rxb6 {[%emt 0:01:54]} Rxc7 {[%emt 0:00:02]} 40. Rb5 {[%emt 0:00:12]} Ra7 {[%emt 0:00:04]} 41. Kg4 {[%emt 0:01:37]} Kf6 {[%emt 0:02:12]} 42. h4 {[%emt 0:00:18]} Ra8 {[%emt 0:00:42]} 43. Rc5 {[%emt 0:01:34]} Ra6 {[%emt 0:01:30]} 44. Kf3 {[%emt 0:00:05]} Ra8 {[%emt 0:00:16]} 45. h5 {[%emt 0:01:00]} gxh5 {[%emt 0:05:28]} 46. Rxh5 {[%emt 0:00:04]} Kg6 {[%emt 0:00:13]} 47. Rg5+ {[%emt 0:00:13]} Kf6 {[%emt 0:00:17]} 48. Re5 {[%emt 0:00:08]} Kg6 {[%emt 0:00:36]} 49. Ke4 {[%emt 0:01:42]} f6 {[%emt 0:01:55]} 50. Rd5 {[%emt 0:00:22]} Re8+ {[%emt 0:00:57]} 51. Kf3 {[%emt 0:02:10]} Ra8 {[%emt 0:00:51]} 52. Kg4 {[%emt 0:00:03]} Ra7 {[%emt 0:00:13]} 53. Rb5 {[%emt 0:00:10]} Ra6 {[%emt 0:00:16]} 54. f5+ {[%emt 0:00:30]} Kh6 {[%emt 0:00:20]} 55. Rc5 {[%emt 0:03:46]} Rb6 {[%emt 0:01:17]} 56. Rb5 {[%emt 0:00:49]} Rc6 {[%emt 0:00:15]} 57. Rxa5 {[%emt 0:00:05]} Rc4+ {[%emt 0:00:02]} 58. Kf3 {[%emt 0:00:02]} Kg5 {[%emt 0:00:03]} 59. Ke3 {[%emt 0:00:03]} Rb4 {[%emt 0:00:16]} 60. Kd3 {[%emt 0:00:05]} Rf4 {[%emt 0:00:10]} 61. Kc3 {[%emt 0:00:06]} Rf3+ {[%emt 0:00:31]} 62. Kc2 {[%emt 0:00:07]} Rf2+ {[%emt 0:00:03]} 63. Kd3 {[%emt 0:00:06]} Rf4 {[%emt 0:00:05]} 1/2-1/2

[Event "Chinese Team-ch Men 2025"]
[Site "Zhang Jiakou Hebei"]
[Date "2025.04.26"]
[Round "2.5"]
[White "Xu, Yinglun"]
[Black "Dai, Changren"]
[Result "1/2-1/2"]
[Annotator "RC"]
[ECO "E32"]
[WhiteElo "2522"]
[BlackElo "2527"]
[PlyCount "61"]
[EventDate "2025.04.26"]
[EventType "team-tourn"]
[EventCountry "CHN"]
[SourceTitle "playchess.com"]
[Source "ChessBase"]
[SourceQuality "1"]
[TimeControl "5400+30"]

1. d4 {[%emt 0:00:04]} Nf6 {[%emt 0:00:07]} 2. c4 {[%emt 0:00:15]} e6 {[%emt 0:00:06]} 3. Nc3 {[%emt 0:00:14]} Bb4 {[%emt 0:01:04]} 4. Qc2 {[%emt 0:00:51]} O-O {[%emt 0:02:12]} 5. e4 {[%emt 0:02:01]} d5 {[%emt 0:01:30]} 6. e5 {[%emt 0:00:14]} Ne4 {[%emt 0:00:04]} 7. Bd3 {[%emt 0:00:36]} c5 {[%emt 0:00:06]} 8. Nge2 {[%emt 0:01:03]} cxd4 {[%emt 0:00:57]} 9. Nxd4 {[%emt 0:00:15]} Nd7 {[%emt 0:01:35]} 10. Bf4 {[%emt 0:01:49]} Qh4 {[%emt 0:01:00]} 11. g3 {[%emt 0:01:07]} Qh5 {[%emt 0:02:01]} 12. O-O {[%emt 0:02:46]} g5 {[%emt 0:08:15]} 13. cxd5 {[%emt 0:02:04]} Bxc3 {[%emt 0:00:05]} 14. bxc3 {[%emt 0:00:10]} exd5 {[%emt 0:00:38]} 15. Be3 {[%emt 0:02:34]} Nxe5 {[%emt 0:06:14]} 16. f3 {[%emt 0:00:37]} Nc5 {[%emt 0:03:03]} 17. Bf5 {[%emt 0:01:03]} Ne6 {[%emt 0:01:38]} 18. g4 {[%emt 0:02:00]} Qh6 {[%emt 0:00:19]} 19. Rae1 {[%emt 0:01:10]} Nxd4 {[%emt 0:04:50]} 20. Bxd4 {[%emt 0:00:48]} Nc6 {[%emt 0:00:49]} 21. Be3 {[%emt 0:00:17]} Bxf5 {[%emt 0:03:07]} 22. Qxf5 {[%emt 0:00:12]} Qg6 {[%emt 0:03:17]} 23. Qxg5 {[%emt 0:01:58]} Qxg5 {[%emt 0:02:06]} 24. Bxg5 {[%emt 0:00:05]} f6 {[%emt 0:01:33]} 25. Be3 {[%emt 0:00:17]} Kf7 {[%emt 0:00:42]} 26. Kf2 {[%emt 0:00:14]} Rac8 {[%emt 0:00:50]} 27. Rb1 {[%emt 0:00:12]} b6 {[%emt 0:01:12]} 28. Rfd1 {[%emt 0:01:21]} Ne7 {[%emt 0:01:12]} 29. Rb3 {[%emt 0:00:59]} Rc4 {[%emt 0:00:55]} 30. Ra3 {[%emt 0:00:58]} Rc7 {[%emt 0:01:08]} 31. Bf4 {[%emt 0:00:05]} 1/2-1/2

[Event "Chinese Team-ch Men 2025"]
[Site "Zhang Jiakou Hebei"]
[Date "2025.04.26"]
[Round "2.6"]
[White "Wang, Shixu B"]
[Black "Zhao, Chenxi"]
[Result "0-1"]
[Annotator "ChessBase"]
[ECO "E12"]
[WhiteElo "2452"]
[BlackElo "2453"]
[PlyCount "74"]
[EventDate "2025.04.26"]
[EventType "team-tourn"]
[EventCountry "CHN"]
[SourceTitle "playchess.com"]
[Source "ChessBase"]
[SourceQuality "1"]
[TimeControl "5400+30"]

1. d4 {[%emt 0:00:11]} e6 {[%emt 0:00:14]} 2. c4 {[%emt 0:00:10]} b6 {[%emt 0:00:00]} 3. Nc3 {[%emt 0:01:13]} Bb7 {[%emt 0:00:01]} 4. a3 {[%emt 0:00:20]} Nf6 {[%emt 0:00:06]} 5. Nf3 {[%emt 0:00:11]} d5 {[%emt 0:00:14]} 6. Bg5 {[%emt 0:00:12]} dxc4 {[%emt 0:00:57]} 7. e3 {[%emt 0:00:33]} a6 {[%emt 0:02:27]} 8. Bxc4 {[%emt 0:01:23]} b5 {[%emt 0:02:25]} 9. Bd3 {[%emt 0:06:03]} c5 {[%emt 0:03:43]} 10. dxc5 {[%emt 0:00:40]} Bxc5 {[%emt 0:00:35]} 11. Qc2 {[%emt 0:00:52]} Nbd7 {[%emt 0:01:43]} 12. O-O {[%emt 0:13:41]} Bxf3 {[%emt 0:05:07]} 13. gxf3 {[%emt 0:00:05]} h6 {[%emt 0:04:50]} 14. Bxf6 {[%emt 0:09:18]} gxf6 {[%emt 0:06:15]} 15. Rad1 {[%emt 0:05:29]} Qb6 {[%emt 0:01:48]} 16. a4 {[%emt 0:07:57]} b4 {[%emt 0:01:29]} 17. Ne4 {[%emt 0:05:32]} Be7 {[%emt 0:01:28]} 18. a5 {[%emt 0:02:44]} Qb7 {[%emt 0:01:34]} 19. Be2 {[%emt 0:01:47]} Ne5 {[%emt 0:04:17]} 20. f4 {[%emt 0:04:40]} Rc8 {[%emt 0:04:17]} 21. Qb1 {[%emt 0:04:00]} Ng6 {[%emt 0:04:12]} 22. Bf3 {[%emt 0:04:14]} Kf8 {[%emt 0:00:50]} 23. Bh1 {[%emt 0:05:06]} Rg8 {[%emt 0:00:47]} 24. Ng3 {[%emt 0:00:33]} Qb5 {[%emt 0:00:16]} 25. f5 {[%emt 0:02:38]} Ne5 {[%emt 0:06:29]} 26. Qe4 {[%emt 0:06:07]} Rg4 {[%emt 0:06:58]} 27. Qb7 {[%emt 0:00:19]} Qxb7 {[%emt 0:02:13]} 28. Bxb7 {[%emt 0:00:06]} Rc2 {[%emt 0:03:59]} 29. Bxa6 {[%emt 0:09:40]} b3 {[%emt 0:02:09]} 30. Bb7 {[%emt 0:07:33]} Rxb2 {[%emt 0:02:28]} 31. a6 {[%emt 0:01:01]} Ra2 {[%emt 0:06:13]} 32. Rd4 {[%emt 0:00:17]} Rxd4 {[%emt 0:02:16]} 33. exd4 {[%emt 0:00:01]} Nc4 {[%emt 0:00:11]} 34. Ne4 {[%emt 0:02:21]} Bb4 {[%emt 0:01:51]} 35. fxe6 {[%emt 0:00:31]} b2 {[%emt 0:00:49]} 36. Bd5 {[%emt 0:00:29]} Ra1 {[%emt 0:00:33]} 37. a7 {[%emt 0:00:04]} Rxf1+ {[%emt 0:00:10]} 0-1

[Event "Chinese Team-ch Men 2025"]
[Site "Zhang Jiakou Hebei"]
[Date "2025.04.26"]
[Round "2.7"]
[White "Li, Shilong"]
[Black "Chu, Weichao"]
[Result "0-1"]
[Annotator "ChessBase"]
[ECO "B28"]
[WhiteElo "2406"]
[BlackElo "2406"]
[PlyCount "70"]
[EventDate "2025.04.26"]
[EventType "team-tourn"]
[EventCountry "CHN"]
[SourceTitle "playchess.com"]
[Source "ChessBase"]
[SourceQuality "1"]
[TimeControl "5400+30"]

1. e4 {[%emt 0:00:03]} c5 {[%emt 0:05:36]} 2. Nf3 {[%emt 0:00:35]} a6 {[%emt 0:00:08]} 3. c3 {[%emt 0:03:03]} e6 {[%emt 0:00:11]} 4. d4 {[%emt 0:00:09]} d5 {[%emt 0:00:08]} 5. e5 {[%emt 0:00:14]} Bd7 {[%emt 0:00:23]} 6. a3 {[%emt 0:07:26]} Nc6 {[%emt 0:04:15]} 7. Bd3 {[%emt 0:01:39]} Qb6 {[%emt 0:04:38]} 8. Bc2 {[%emt 0:02:24]} Nh6 {[%emt 0:00:32]} 9. O-O {[%emt 0:08:10]} cxd4 {[%emt 0:00:06]} 10. cxd4 {[%emt 0:00:05]} Nf5 {[%emt 0:00:07]} 11. Bxf5 {[%emt 0:36:13]} exf5 {[%emt 0:00:09]} 12. Nc3 {[%emt 0:00:02]} Be6 {[%emt 0:00:10]} 13. b4 {[%emt 0:00:32]} h6 {[%emt 0:02:31]} 14. Rb1 {[%emt 0:01:37]} Be7 {[%emt 0:14:50]} 15. Be3 {[%emt 0:12:37]} O-O {[%emt 0:06:54]} 16. Na4 {[%emt 0:00:47]} Qc7 {[%emt 0:06:24]} 17. Rc1 {[%emt 0:09:30]} Rfc8 {[%emt 0:05:27]} 18. Ne1 {[%emt 0:05:30]} b6 {[%emt 0:05:22]} 19. Nd3 {[%emt 0:00:04]} Bd8 {[%emt 0:00:49]} 20. Nf4 {[%emt 0:00:49]} Qd7 {[%emt 0:02:58]} 21. Nh5 {[%emt 0:00:25]} Qe8 {[%emt 0:05:34]} 22. Rc3 {[%emt 0:07:08]} Kh8 {[%emt 0:01:51]} 23. Qc1 {[%emt 0:01:30]} Nxd4 {[%emt 0:06:02]} 24. Bxd4 {[%emt 0:00:43]} Qxa4 {[%emt 0:00:06]} 25. Rxc8 {[%emt 0:00:25]} Rxc8 {[%emt 0:00:04]} 26. Qe3 {[%emt 0:00:02]} Rc4 {[%emt 0:01:53]} 27. g3 {[%emt 0:01:41]} Bg5 {[%emt 0:13:12]} 28. f4 {[%emt 0:00:29]} Be7 {[%emt 0:01:37]} 29. Bxb6 {[%emt 0:00:34]} d4 {[%emt 0:00:05]} 30. Bxd4 {[%emt 0:00:16]} Qc6 {[%emt 0:00:04]} 31. h4 {[%emt 0:00:47]} Bc8 {[%emt 0:08:35]} 32. e6 {[%emt 0:00:26]} Bb7 {[%emt 0:00:36]} 33. Bxg7+ {[%emt 0:00:25]} Kh7 {[%emt 0:00:08]} 34. Kf2 {[%emt 0:00:25]} Qg2+ {[%emt 0:00:56]} 35. Ke1 {[%emt 0:00:03]} Re4 {[%emt 0:00:05]} 0-1

[Event "Chinese Team-ch Men 2025"]
[Site "Zhang Jiakou Hebei"]
[Date "2025.04.26"]
[Round "2.8"]
[White "Xi, Qi"]
[Black "Wu, Yixing"]
[Result "1/2-1/2"]
[Annotator "ChessBase"]
[ECO "D35"]
[WhiteElo "2257"]
[BlackElo "2406"]
[PlyCount "110"]
[EventDate "2025.04.26"]
[EventType "team-tourn"]
[EventCountry "CHN"]
[SourceTitle "playchess.com"]
[Source "ChessBase"]
[SourceQuality "1"]
[TimeControl "5400+30"]

1. d4 {[%emt 0:00:04]} Nf6 {[%emt 0:00:06]} 2. c4 {[%emt 0:00:07]} e6 {[%emt 0:00:04]} 3. Nf3 {[%emt 0:00:20]} d5 {[%emt 0:00:05]} 4. Nc3 {[%emt 0:00:39]} Nbd7 {[%emt 0:00:06]} 5. cxd5 {[%emt 0:07:09]} exd5 {[%emt 0:00:11]} 6. Bf4 {[%emt 0:00:16]} Bb4 {[%emt 0:00:09]} 7. Qb3 {[%emt 0:13:37]} c5 {[%emt 0:00:27]} 8. dxc5 {[%emt 0:00:59]} Qa5 {[%emt 0:00:22]} 9. a3 {[%emt 0:01:53]} Bxc3+ {[%emt 0:00:29]} 10. bxc3 {[%emt 0:03:53]} Ne4 {[%emt 0:04:05]} 11. Qb4 {[%emt 0:05:36]} Qxc5 {[%emt 0:00:09]} 12. Be3 {[%emt 0:00:58]} Qd6 {[%emt 0:08:20]} 13. Nd4 {[%emt 0:10:14]} a5 {[%emt 0:18:51]} 14. Qxd6 {[%emt 0:03:50]} Nxd6 {[%emt 0:00:06]} 15. Bf4 {[%emt 0:00:15]} Ke7 {[%emt 0:00:21]} 16. e3 {[%emt 0:01:34]} Nc5 {[%emt 0:08:01]} 17. f3 {[%emt 0:05:02]} Ne6 {[%emt 0:08:52]} 18. Nxe6 {[%emt 0:06:55]} Bxe6 {[%emt 0:00:51]} 19. Rb1 {[%emt 0:00:08]} Rhc8 {[%emt 0:05:26]} 20. Kd2 {[%emt 0:01:40]} Rc6 {[%emt 0:01:04]} 21. Bd3 {[%emt 0:03:30]} b6 {[%emt 0:10:31]} 22. Rb2 {[%emt 0:02:27]} Nc4+ {[%emt 0:01:59]} 23. Bxc4 {[%emt 0:00:08]} dxc4 {[%emt 0:00:03]} 24. Rhb1 {[%emt 0:01:35]} Rd8+ {[%emt 0:00:34]} 25. Ke2 {[%emt 0:02:27]} f6 {[%emt 0:08:19]} 26. e4 {[%emt 0:04:02]} Rd3 {[%emt 0:00:09]} 27. Bd2 {[%emt 0:00:37]} Rcd6 {[%emt 0:00:50]} 28. Be1 {[%emt 0:00:52]} f5 {[%emt 0:01:31]} 29. exf5 {[%emt 0:06:48]} Bxf5 {[%emt 0:00:05]} 30. Rxb6 {[%emt 0:00:09]} Re6+ {[%emt 0:02:59]} 31. Rxe6+ {[%emt 0:00:40]} Kxe6 {[%emt 0:00:02]} 32. Rb8 {[%emt 0:01:06]} h5 {[%emt 0:01:49]} 33. h3 {[%emt 0:01:57]} Rd5 {[%emt 0:00:38]} 34. Bd2 {[%emt 0:00:54]} g6 {[%emt 0:02:30]} 35. Be3 {[%emt 0:02:03]} Kd7 {[%emt 0:01:11]} 36. g4 {[%emt 0:05:17]} Bd3+ {[%emt 0:00:21]} 37. Kf2 {[%emt 0:00:08]} hxg4 {[%emt 0:00:14]} 38. fxg4 {[%emt 0:01:08]} Kc7 {[%emt 0:05:08]} 39. Rb2 {[%emt 0:01:21]} Kc6 {[%emt 0:01:17]} 40. Rb6+ {[%emt 0:00:49]} Kc7 {[%emt 0:00:12]} 41. Ra6 {[%emt 0:01:38]} Kb7 {[%emt 0:00:27]} 42. Ra7+ {[%emt 0:00:12]} Kc6 {[%emt 0:00:11]} 43. h4 {[%emt 0:01:04]} Kb5 {[%emt 0:06:20]} 44. Kf3 {[%emt 0:01:37]} Bc2 {[%emt 0:01:49]} 45. Kf4 {[%emt 0:00:52]} Bd3 {[%emt 0:01:03]} 46. Bd4 {[%emt 0:00:31]} Bc2 {[%emt 0:01:39]} 47. Ra8 {[%emt 0:01:25]} Ka4 {[%emt 0:01:15]} 48. Bb6 {[%emt 0:00:34]} Bd3 {[%emt 0:00:20]} 49. Ra7 {[%emt 0:00:47]} Bc2 {[%emt 0:00:52]} 50. Bc7 {[%emt 0:00:58]} Bd3 {[%emt 0:00:25]} 51. Ra6 {[%emt 0:00:18]} Bc2 {[%emt 0:00:32]} 52. Ra7 {[%emt 0:02:08]} Bd3 {[%emt 0:00:04]} 53. Ra8 {[%emt 0:00:34]} Bc2 {[%emt 0:00:25]} 54. Ra6 {[%emt 0:00:42]} Bd3 {[%emt 0:00:07]} 55. Ra8 {[%emt 0:00:43]} Bc2 {[%emt 0:00:05]} 1/2-1/2

[Event "Chinese Team-ch Men 2025"]
[Site "Zhang Jiakou Hebei"]
[Date "2025.04.26"]
[Round "2.9"]
[White "Xiu, Deshun"]
[Black "Chen, Qi b"]
[Result "1/2-1/2"]
[Annotator "RC"]
[ECO "B12"]
[WhiteElo "2516"]
[BlackElo "2482"]
[PlyCount "60"]
[EventDate "2025.04.26"]
[EventType "team-tourn"]
[EventCountry "CHN"]
[SourceTitle "playchess.com"]
[Source "ChessBase"]
[SourceQuality "1"]
[TimeControl "5400+30"]

1. e4 {[%emt 0:00:47]} c6 {[%emt 0:00:33]} 2. d4 {[%emt 0:01:34]} d5 {[%emt 0:00:08]} 3. e5 {[%emt 0:01:14]} c5 {[%emt 0:01:54]} 4. Nf3 {[%emt 0:03:32]} cxd4 {[%emt 0:01:22]} 5. Qxd4 {[%emt 0:00:45]} Nc6 {[%emt 0:00:14]} 6. Qf4 {[%emt 0:00:30]} g6 {[%emt 0:03:30]} 7. Nc3 {[%emt 0:06:11]} d4 {[%emt 0:02:42]} 8. Bc4 {[%emt 0:02:32]} Bf5 {[%emt 0:00:49]} 9. Ne2 {[%emt 0:01:57]} Bh6 {[%emt 0:02:52]} 10. Qg3 {[%emt 0:04:48]} Bxc2 {[%emt 0:01:56]} 11. O-O {[%emt 0:08:24]} d3 {[%emt 0:03:06]} 12. Nc3 {[%emt 0:05:16]} d2 {[%emt 0:02:07]} 13. Bxd2 {[%emt 0:01:54]} Bxd2 {[%emt 0:00:07]} 14. Rad1 {[%emt 0:02:43]} Bxd1 {[%emt 0:01:23]} 15. Rxd1 {[%emt 0:00:07]} Qa5 {[%emt 0:04:48]} 16. Rxd2 {[%emt 0:00:57]} Rd8 {[%emt 0:01:06]} 17. Qf4 {[%emt 0:05:37]} e6 {[%emt 0:00:34]} 18. Rxd8+ {[%emt 0:01:51]} Qxd8 {[%emt 0:00:28]} 19. Ne4 {[%emt 0:01:28]} Qd1+ {[%emt 0:01:40]} 20. Bf1 {[%emt 0:01:05]} Nge7 {[%emt 0:00:58]} 21. Nd6+ {[%emt 0:03:55]} Kd7 {[%emt 0:00:08]} 22. Qxf7 {[%emt 0:00:56]} Qd5 {[%emt 0:01:18]} 23. Bc4 {[%emt 0:01:32]} Qd1+ {[%emt 0:00:37]} 24. Bf1 {[%emt 0:00:06]} Qd5 {[%emt 0:00:22]} 25. Qf6 {[%emt 0:01:35]} Rb8 {[%emt 0:00:47]} 26. h4 {[%emt 0:02:50]} Nxe5 {[%emt 0:00:42]} 27. Nxe5+ {[%emt 0:00:10]} Kxd6 {[%emt 0:00:03]} 28. Nc4+ {[%emt 0:00:31]} Kd7 {[%emt 0:00:04]} 29. Ne5+ {[%emt 0:00:15]} Kd6 {[%emt 0:00:04]} 30. Nc4+ {[%emt 0:00:06]} Kd7 {[%emt 0:00:51]} 1/2-1/2